bitfinex/quotes_SOLUSD_20250315
["timestamp","ask_amount","ask_price","bid_price","bid_amount"]
[1742061114424,0.0001,135.62,135.6,0.03]
[1742061114643,14.29913431,135.62,135.6,0.03]
[1742061114828,14.29903431,135.61,135.6,0.03]
[1742061115223,0.0001,135.62,135.6,0.03]
[1742061119643,14.29913431,135.62,135.6,0.03]
[1742061119845,0.0001,135.62,135.61,20.81903431]
[1742061120137,0.0001,135.62,135.61,41.02568317]
[1742061120544,0.0001,135.62,135.61,48.39968317]
[1742061120931,0.0001,135.62,135.61,118.57368317]
[1742061125643,0.0001,135.62,135.61,118.85800631]
[1742061126547,0.063,135.68,135.65,18.64964886]
[1742061126746,0.063,135.69,135.67,14.29903431]
[1742061127044,0.063,135.69,135.66,6.52]
[1742061127229,0.063,135.69,135.66,20.81903431]
[1742061127627,0.063,135.69,135.65,84.47293431]
[1742061127826,0.063,135.69,135.65,76.6939]
[1742061128026,14.36203431,135.69,135.65,70.1739]
[1742061128241,14.36203431,135.69,135.66,7.3713]
[1742061128640,14.36203431,135.69,135.65,77.5457]
[1742061130845,0.063,135.69,135.65,91.84473431]
[1742061131750,0.063,135.69,135.65,21.67083431]
[1742061132447,0.063,135.69,135.66,14.29903431]
[1742061132652,0.063,135.69,135.68,14.29903431]
[1742061133642,0.063,135.69,135.68,21.66923431]
[1742061134554,0.063,135.69,135.68,7.3702]
[1742061135460,0.063,135.69,135.68,21.66923431]
[1742061136134,0.0001,135.69,135.68,110.49278317]
[1742061136334,0.063,135.73,135.69,18.64964886]
[1742061136548,0.063,135.73,135.7,6.52]
[1742061136956,0.063,135.73,135.68,7.3702]
[1742061136957,14.29903431,135.71,135.68,7.3702]
[1742061137137,14.29903431,135.7,135.67,7.3705]
[1742061137677,14.29903431,135.69,135.63,86.10353431]
[1742061137831,14.29903431,135.69,135.64,21.67143431]
[1742061138030,14.29903431,135.7,135.64,40.10253431]
[1742061138432,0.28432314,135.72,135.64,40.10253431]
[1742061138433,14.29903431,135.69,135.64,40.10253431]
[1742061140761,14.29903431,135.67,135.64,7.3724]
[1742061143238,1.7193,135.73,135.66,14.29903431]
[1742061143441,16.01833431,135.73,135.67,14.29903431]
[1742061144135,16.01833431,135.73,135.68,7.3702]
[1742061144641,14.29903431,135.7,135.67,7.3707]
[1742061144844,14.29903431,135.69,135.67,7.3707]
[1742061145556,14.29903431,135.7,135.67,7.3707]
[1742061145761,14.29903431,135.7,135.65,25.8015]
[1742061146366,14.29903431,135.7,135.65,48.10049787]
[1742061146367,22.29899787,135.7,135.65,48.10049787]
[1742061149340,0.063,135.69,135.65,48.10049787]
[1742061149759,0.063,135.69,135.66,22.29899787]
[1742061151053,0.063,135.69,135.67,7.3708]
[1742061152948,0.063,135.69,135.65,25.8015]
[1742061153548,22.36199787,135.69,135.65,25.8015]
[1742061154157,22.29899787,135.68,135.65,7.3719]
[1742061155849,0.9422,135.63,135.55,13.20328016]
[1742061156058,28.42999787,135.57,135.55,13.18338016]
[1742061156370,23.68248692,135.56,135.55,13.18338016]
[1742061156557,22.29899787,135.56,135.55,13.18338016]
[1742061157075,20.0,135.59,135.55,13.18338016]
[1742061157256,20.0,135.59,135.54,22.29899787]
[1742061157458,22.29899787,135.6,135.54,22.29899787]
[1742061157675,22.29899787,135.57,135.51,29.25899787]
[1742061157863,22.29899787,135.56,135.51,6.96]
[1742061158073,22.29899787,135.55,135.51,6.96]
[1742061158373,22.29899787,135.53,135.48,22.29899787]
[1742061158665,22.29899787,135.53,135.47,6.99]
[1742061158666,22.29899787,135.52,135.47,6.99]
[1742061159166,22.29899787,135.51,135.47,0.03]
[1742061159371,22.29899787,135.5,135.47,0.03]
[1742061159670,5.49414434,135.5,135.47,0.03]
[1742061160046,27.79314221,135.5,135.47,0.03]
[1742061160371,22.29899787,135.49,135.47,0.03]
[1742061161162,5.49414434,135.5,135.47,22.32899787]
[1742061161555,5.49414434,135.48,135.47,22.32899787]
[1742061162575,22.29899787,135.52,135.47,22.32899787]
[1742061163284,22.29899787,135.54,135.48,22.29899787]
[1742061163486,22.29899787,135.54,135.49,22.29899787]
[1742061163783,27.75653423,135.53,135.48,22.29899787]
[1742061164882,27.75653423,135.53,135.47,92.50289787]
[1742061165177,22.29899787,135.52,135.47,70.2039]
[1742061165368,22.29899787,135.51,135.47,70.2039]
[1742061166471,22.29899787,135.52,135.47,70.2039]
[1742061167460,22.29899787,135.52,135.47,99.88439787]
[1742061172093,22.29899787,135.51,135.47,99.88439787]
[1742061172391,22.29899787,135.52,135.47,99.88439787]
[1742061172693,22.29899787,135.53,135.48,22.29899787]
[1742061173365,22.29899787,135.52,135.47,125.23859787]
[1742061174367,22.29899787,135.52,135.47,102.9396]
[1742061174567,22.29899787,135.51,135.47,102.9396]
[1742061175082,0.063,135.56,135.47,102.9396]
[1742061175083,22.29899787,135.52,135.47,125.23859787]
[1742061184288,14.30830656,135.52,135.47,117.24790656]
[1742061184667,14.30830656,135.51,135.47,102.9396]
[1742061185970,14.30830656,135.51,135.47,109.4399]
[1742061186290,14.30830656,135.52,135.47,123.74820656]
[1742061186988,14.30830656,135.55,135.49,14.30830656]
[1742061187188,23.5282138,135.56,135.51,15.90620656]
[1742061187488,14.30830656,135.55,135.51,1.5979]
[1742061187692,5.44285539,135.54,135.51,1.5979]
[1742061188190,155.503972,135.51,135.47,0.03]
[1742061188403,20.0,135.45,135.41,0.03]
[1742061188602,61.32701229,135.43,135.41,0.03]
[1742061188977,68.71081229,135.43,135.41,0.03]
[1742061189181,74.15366768,135.43,135.41,0.03]
[1742061189784,0.28432314,135.42,135.41,0.03]
[1742061189985,41.32701229,135.42,135.41,0.03]
[1742061190305,56.85562893,135.42,135.41,0.03]
[1742061191187,64.24002893,135.42,135.41,0.03]
[1742061191585,56.85562893,135.42,135.41,0.03]
[1742061192106,61.2038021,135.42,135.41,0.03]
[1742061193189,24.39304029,135.38,135.33,9.0171]
[1742061193406,24.39304029,135.38,135.33,31.41014029]
[1742061193790,24.39304029,135.38,135.33,24.02094029]
[1742061193993,24.39304029,135.38,135.33,94.19484029]
[1742061194199,24.39304029,135.38,135.33,101.58394029]
[1742061195306,2.0,135.38,135.33,101.58394029]
[1742061196181,24.39304029,135.38,135.33,101.58394029]
[1742061197492,5.45062923,135.37,135.33,101.58394029]
[1742061198578,5.45062923,135.36,135.33,101.58394029]
[1742061201916,5.45062923,135.35,135.33,101.58394029]
[1742061203211,24.39304029,135.38,135.33,101.58394029]
[1742061204516,22.39304029,135.35,135.33,9.017]
[1742061205003,22.39304029,135.36,135.33,9.017]
[1742061205599,5.4642317,135.35,135.33,9.017]
[1742061206690,22.39304029,135.36,135.33,9.017]
[1742061208019,2.0,135.38,135.34,22.39304029]
[1742061208402,2.0,135.38,135.35,7.3882]
[1742061208605,2.0,135.38,135.35,25.8588]
[1742061208808,24.39304029,135.38,135.35,25.8588]
[1742061209301,2.0,135.38,135.35,25.8588]
[1742061209505,5.45590329,135.37,135.35,48.25184029]
[1742061210020,5.45590329,135.37,135.35,25.8588]
[1742061210699,2.0,135.38,135.35,48.25184029]
[1742061213423,2.0,135.38,135.35,25.8588]
[1742061215501,2.0,135.38,135.35,48.25184029]
[1742061215701,2.0,135.38,135.35,25.8588]
[1742061218109,2.0,135.38,135.35,48.25184029]
[1742061219423,22.39304029,135.4,135.35,85.19304029]
[1742061219920,22.45604029,135.41,135.36,22.39304029]
[1742061220260,0.0001,135.41,135.4,22.39304029]
[1742061220404,0.0001,135.41,135.4,29.23304029]
[1742061220720,0.0001,135.41,135.4,6.84]
[1742061220929,22.39314029,135.41,135.39,1.5877]
[1742061221304,22.39314029,135.41,135.4,7.3855]
[1742061222317,14.33144417,135.41,135.4,7.3855]
[1742061224414,0.0001,135.41,135.4,7.3855]
[1742061224913,14.33144417,135.41,135.4,7.3855]
[1742061227530,19.81404734,135.41,135.4,7.3855]
[1742061230232,5.48270317,135.41,135.4,7.3855]
[1742061230617,28.60297779,135.41,135.36,7.3877]
[1742061230815,28.60297779,135.41,135.35,9.0057]
[1742061230816,14.33134417,135.37,135.35,9.0057]
[1742061231021,14.33134417,135.36,135.35,9.0057]
[1742061231329,14.33134417,135.36,135.35,0.03]
[1742061231712,14.33134417,135.37,135.35,7.4182]
[1742061231920,5.48260317,135.36,135.35,7.4182]
[1742061232316,19.81394734,135.36,135.35,0.03]
[1742061233427,28.62891493,135.36,135.35,0.03]
[1742061239936,14.29757076,135.36,135.35,0.03]
[1742061242634,28.62891493,135.36,135.35,0.03]
[1742061243526,14.29757076,135.36,135.35,0.03]
[1742061244218,28.62891493,135.36,135.35,0.03]
[1742061247842,14.29757076,135.36,135.35,0.03]
[1742061255352,28.62891493,135.36,135.35,0.03]
[1742061256730,28.62891493,135.36,135.27,0.53]
[1742061256731,18.933972,135.3,135.29,2.4764405]
[1742061256938,20.28432314,135.28,135.27,0.03]
[1742061257156,20.0,135.25,135.21,0.03]
[1742061257337,14.33134417,135.22,135.21,0.03]
[1742061258464,14.61566731,135.22,135.21,0.03]
[1742061258929,15.71854379,135.22,135.21,0.03]
[1742061259128,33.26531617,135.22,135.21,0.03]
[1742061259334,14.61566731,135.22,135.21,0.03]
[1742061259940,20.09705898,135.22,135.21,0.03]
[1742061260350,28.23232378,135.22,135.21,0.03]
[1742061260855,46.88197264,135.22,135.21,0.03]
[1742061261035,28.23232378,135.22,135.21,0.03]
[1742061261237,20.0,135.18,135.09,11.44200788]
[1742061261439,22.46660897,135.16,135.11,22.46660897]
[1742061261640,22.46660897,135.16,135.1,22.46660897]
[1742061262654,22.46660897,135.15,135.1,22.46660897]
[1742061262851,22.46660897,135.15,135.1,29.86850897]
[1742061263258,22.46660897,135.16,135.11,22.46660897]
[1742061263935,22.46660897,135.15,135.1,22.46660897]
[1742061264651,22.46660897,135.15,135.09,36.78890897]
[1742061264836,22.46660897,135.14,135.09,36.78890897]
[1742061265153,22.46660897,135.14,135.09,29.38660897]
[1742061265350,22.46660897,135.14,135.08,106.96340897]
[1742061265548,22.46660897,135.13,135.07,29.87000897]
[1742061265744,22.46660897,135.13,135.08,22.46660897]
[1742061266841,22.46660897,135.13,135.09,7.4024]
[1742061269756,22.46660897,135.12,135.08,7.4328]
[1742061270267,22.46660897,135.11,135.08,7.4328]
[1742061270466,1.67223343,135.15,135.08,7.4328]
[1742061270467,22.46660897,135.12,135.08,7.4328]
[1742061273047,1.38785234,135.16,135.08,48.40690897]
[1742061273245,22.46660897,135.12,135.08,25.9403]
[1742061273848,22.46660897,135.11,135.08,25.9403]
[1742061274048,22.46660897,135.12,135.08,25.9403]
[1742061274253,22.46660897,135.13,135.08,48.40690897]
[1742061275065,22.46660897,135.12,135.08,25.9403]
[1742061275640,22.46660897,135.09,135.08,0.03]
[1742061276543,22.46660897,135.09,135.08,7.433]
[1742061276954,22.46660897,135.09,135.08,0.03]
[1742061277153,22.46660897,135.1,135.08,0.03]
[1742061278065,22.46660897,135.11,135.08,0.03]
[1742061279060,22.46660897,135.11,135.07,16.87329623]
[1742061279946,22.46660897,135.12,135.07,39.3399052]
[1742061280671,22.46660897,135.12,135.07,46.7434052]
[1742061280967,1.38792706,135.15,135.08,22.46660897]
[1742061281161,22.46660897,135.13,135.08,22.46660897]
[1742061281349,22.46660897,135.13,135.08,24.12460897]
[1742061282165,22.46660897,135.12,135.08,1.658]
[1742061283470,22.46660897,135.13,135.09,62.9208]
[1742061284073,22.46660897,135.13,135.09,55.5184]
[1742061284572,22.46660897,135.14,135.09,77.98500897]
[1742061284971,22.46660897,135.15,135.1,22.46660897]
[1742061285277,22.46660897,135.16,135.11,22.46660897]
[1742061285478,22.46660897,135.16,135.12,25.9028]
[1742061288689,22.46660897,135.15,135.12,25.9028]
[1742061291683,22.46660897,135.15,135.06,0.03]
[1742061291684,20.0,135.07,135.06,0.03]
[1742061291860,42.46660897,135.07,134.98,22.46660897]
[1742061292057,22.46660897,135.04,134.98,22.46660897]
[1742061292281,22.46660897,135.03,134.96,99.71050897]
[1742061292666,22.46660897,135.03,134.96,70.2039]
[1742061292872,22.46660897,135.03,134.96,77.6134]
[1742061293170,1.53070836,135.07,134.96,22.49660897]
[1742061293369,22.46660897,135.06,135.01,22.46660897]
[1742061293767,22.46660897,135.06,135.01,7.4064]
[1742061294084,22.46660897,135.05,135.01,7.4064]
[1742061294386,22.46660897,135.06,135.02,9.8827405]
[1742061294586,22.46660897,135.05,135.02,2.4764405]
[1742061295688,22.46660897,135.06,135.02,2.4764405]
[1742061295878,22.46660897,135.06,135.02,9.8826405]
[1742061296186,22.46660897,135.07,135.02,9.8826405]
[1742061296385,22.46660897,135.08,135.02,32.34924947]
[1742061296584,22.46660897,135.08,135.03,22.46660897]
[1742061297094,22.46660897,135.09,135.03,22.46660897]
[1742061297296,22.46660897,135.08,135.03,22.46660897]
[1742061297585,22.46660897,135.08,135.04,7.4052]
[1742061297974,22.46660897,135.09,135.04,29.87180897]
[1742061298173,22.46660897,135.09,135.05,7.02]
[1742061299696,22.46660897,135.08,135.05,7.02]
[1742061299998,22.46660897,135.07,135.05,7.02]
[1742061300198,22.46660897,135.06,135.05,7.02]
[1742061300569,22.46660897,135.07,135.05,7.02]
[1742061301802,22.46660897,135.09,135.05,7.02]
[1742061302300,14.21206752,135.06,135.05,7.02]
[1742061302783,14.21206752,135.06,135.05,14.4246]
[1742061303786,5.46617981,135.06,135.05,14.4246]
[1742061304304,7.981e-05,135.06,135.05,36.89120897]
[1742061304606,22.46660897,135.12,135.06,1.5969]
[1742061304808,22.46660897,135.11,135.08,7.403]
[1742061305706,22.46660897,135.12,135.08,25.9105]
[1742061306606,22.46660897,135.13,135.08,54.59320897]
[1742061306809,22.46660897,135.13,135.08,124.76710897]
[1742061307908,22.46660897,135.14,135.08,124.76710897]
[1742061308207,22.46660897,135.14,135.09,22.46660897]
[1742061308385,22.46660897,135.14,135.1,6.96]
[1742061309015,0.063,135.16,135.1,29.42660897]
[1742061309312,22.46660897,135.15,135.1,29.42660897]
[1742061309492,22.46660897,135.15,135.1,99.60050897]
[1742061309998,22.46660897,135.15,135.11,25.9047]
[1742061310392,22.52960897,135.16,135.11,48.37130897]
[1742061311711,22.46660897,135.15,135.11,25.9047]
[1742061312412,22.52960897,135.16,135.11,48.37130897]
[1742061312593,22.52960897,135.16,135.12,1.6094]
[1742061312794,22.46660897,135.13,135.12,71.7833]
[1742061313086,22.46660897,135.13,135.12,1.6094]
[1742061313304,22.46660897,135.13,135.11,7.4013]
[1742061313615,22.46660897,135.12,135.09,9.0116]
[1742061313917,22.46660897,135.1,135.09,9.0116]
[1742061314212,22.46660897,135.1,135.09,1.6094]
[1742061314412,22.46660897,135.1,135.09,9.0118]
[1742061314587,22.46660897,135.12,135.09,9.0118]
[1742061317848,5.48022806,135.11,135.09,9.0118]
[1742061319014,0.063,135.12,135.09,27.5179]
[1742061319599,22.46660897,135.11,135.09,9.0118]
[1742061322433,22.46660897,135.1,135.08,84.5166]
[1742061322728,22.46660897,135.09,135.08,84.5166]
[1742061322936,22.46660897,135.09,135.08,14.3427]
[1742061323110,22.46660897,135.09,135.08,7.4027]
[1742061323306,22.46660897,135.09,135.07,7.4034]
[1742061323914,7.4638,135.12,135.06,1.5597]
[1742061323915,22.46660897,135.08,135.06,1.5597]
[1742061324126,22.46660897,135.07,135.06,1.5597]
[1742061324435,22.46660897,135.08,135.06,1.5597]
[1742061324624,22.46660897,135.08,135.06,8.9638]
[1742061324932,22.46660897,135.09,135.06,8.9638]
[1742061326431,5.48541132,135.08,135.06,8.9638]
[1742061326839,27.95202029,135.08,135.06,7.4041]
[1742061327335,5.48541132,135.08,135.06,7.4041]
[1742061327741,22.46660897,135.08,135.06,7.4041]
[1742061328043,22.46660897,135.09,135.05,0.03]
[1742061329241,22.46660897,135.08,135.05,0.03]
[1742061331342,22.46660897,135.09,135.05,0.03]
[1742061336339,22.46660897,135.1,135.05,22.49660897]
[1742061336540,22.46660897,135.11,135.06,22.46660897]
[1742061336719,22.52960897,135.12,135.08,1.5556]
[1742061337319,5.48672869,135.11,135.09,7.4024]
[1742061337754,27.95333766,135.11,135.09,7.4024]
[1742061338243,5.48672869,135.1,135.09,7.4024]
[1742061342149,5.54972869,135.1,135.09,7.4024]
[1742061361571,19.94356875,135.1,135.08,7.4027]
[1742061361772,14.39384006,135.09,135.08,7.4027]
[1742061361973,19.88056875,135.09,135.08,7.4027]
[1742061362158,5.48672869,135.09,135.08,7.4027]
[1742061363179,5.48672869,135.09,135.06,32.6241]
[1742061364272,5.48672869,135.08,135.06,47.01794006]
[1742061365578,0.063,135.1,135.06,47.01794006]
[1742061366473,5.50061869,135.09,135.06,47.01794006]
[1742061366651,5.50061869,135.09,135.06,32.6241]
[1742061366856,5.50061869,135.09,135.06,47.01794006]
[1742061367680,5.56361869,135.09,135.06,47.01794006]
[1742061368178,5.50061869,135.08,135.06,47.01794006]
[1742061368477,5.50061869,135.08,135.06,32.6241]
[1742061369673,5.50061869,135.07,135.06,32.6241]
[1742061370475,5.50061869,135.07,135.06,32.1241]
[1742061370678,5.50061869,135.07,135.06,46.51794006]
[1742061370871,5.50061869,135.07,135.06,46.01794006]
[1742061371479,1.869e-05,135.07,135.06,46.01794006]
[1742061371983,1.869e-05,135.1,135.07,18.64964886]
[1742061372183,1.869e-05,135.1,135.09,33.04348892]
[1742061372765,1.869e-05,135.1,135.09,40.82178892]
[1742061372968,1.869e-05,135.12,135.1,18.64964886]
[1742061373170,1.869e-05,135.12,135.11,21.05384006]
[1742061374075,0.0001,135.16,135.11,173.64035369]
[1742061374278,0.0001,135.16,135.15,16.00414006]
[1742061374472,0.0001,135.16,135.15,86.17804006]
[1742061376185,0.063,135.21,135.16,70.1738]
[1742061376379,0.063,135.21,135.2,14.39384006]
[1742061376690,0.0001,135.21,135.2,84.56764006]
[1742061378183,0.0001,135.21,135.2,91.96404006]
[1742061378994,0.0001,135.21,135.2,77.5702]
[1742061380991,0.0001,135.21,135.2,7.3964]
[1742061381494,22.45270985,135.21,135.19,7.4269]
[1742061382395,22.45270985,135.21,135.19,0.03]
[1742061382897,22.45260985,135.2,135.19,0.03]
[1742061383397,22.45270985,135.21,135.19,0.03]
[1742061391593,0.0001,135.21,135.19,0.03]
[1742061395801,22.45270985,135.21,135.19,0.03]
[1742061396302,0.0001,135.21,135.19,6.67]
[1742061397088,0.0001,135.21,135.2,7.3964]
[1742061398010,22.45270985,135.21,135.2,7.3964]
[1742061398307,22.45270985,135.21,135.19,14.0667]
[1742061402183,22.45260985,135.2,135.19,14.0667]
[1742061402388,14.37541954,135.2,135.19,14.0667]
[1742061403908,14.37541954,135.2,135.19,7.4267]
[1742061404113,14.37541954,135.2,135.19,0.03]
[1742061419393,14.37551954,135.21,135.19,0.03]
[1742061419824,0.0001,135.21,135.19,0.03]
[1742061420028,14.37551954,135.21,135.19,0.03]
[1742061421717,14.37541954,135.2,135.19,0.03]
[1742061431338,0.0001,135.21,135.19,0.03]
[1742061432224,0.0001,135.21,135.16,39.80051954]
[1742061432730,14.37551954,135.21,135.16,39.80051954]
[1742061433816,14.37551954,135.21,135.16,25.4251]
[1742061434136,14.37541954,135.17,135.16,6.9286]
[1742061434928,14.37541954,135.17,135.15,1.6103]
[1742061435136,14.37541954,135.16,135.14,7.3992]
[1742061435310,14.37541954,135.15,135.13,77.5738]
[1742061435517,14.37541954,135.14,135.13,7.4]
[1742061436632,14.37541954,135.15,135.13,7.4]
[1742061437638,14.37541954,135.16,135.13,7.4]
[1742061439735,14.37541954,135.16,135.13,7.43]
[1742061442215,14.37541954,135.15,135.13,7.43]
[1742061445457,14.37541954,135.16,135.13,7.43]
[1742061445822,14.37541954,135.17,135.13,25.9307]
[1742061446022,14.37541954,135.19,135.14,14.37541954]
[1742061446338,25.90178287,135.2,135.15,20.95541954]
[1742061447043,14.37541954,135.2,135.15,20.95541954]
[1742061447538,14.37541954,135.2,135.16,25.8951]
[1742061451348,14.37541954,135.19,135.16,7.3986]
[1742061451532,14.37541954,135.18,135.16,7.3986]
[1742061452521,0.063,135.2,135.16,7.3986]
[1742061452718,14.43841954,135.2,135.16,7.3986]
[1742061453142,14.43841954,135.2,135.16,25.8951]
[1742061454740,0.063,135.2,135.17,1.5565]
[1742061455642,14.43841954,135.2,135.17,1.5565]
[1742061457143,0.063,135.2,135.18,7.3975]
[1742061457323,0.063,135.2,135.18,21.77291954]
[1742061461645,0.063,135.2,135.18,7.3975]
[1742061461953,14.37541954,135.19,135.17,8.9543]
[1742061462451,14.43841954,135.2,135.17,8.9543]
[1742061462839,14.37541954,135.19,135.17,8.9543]
[1742061463146,14.37541954,135.18,135.15,70.1738]
[1742061463450,14.37541954,135.17,135.15,70.1738]
[1742061463651,14.37541954,135.16,135.14,7.3993]
[1742061464333,14.37541954,135.17,135.14,7.3993]
[1742061469258,14.37541954,135.18,135.14,7.3993]
[1742061471972,14.37541954,135.17,135.13,85.7164]
[1742061472150,14.37541954,135.16,135.13,15.5426]
[1742061472353,14.37541954,135.17,135.13,15.5426]
[1742061476667,14.43841954,135.17,135.13,15.5426]
[1742061479946,14.37541954,135.15,135.13,8.9626]
[1742061482367,0.063,135.17,135.13,0.03]
[1742061482368,14.37541954,135.14,135.13,0.03]
[1742061482762,14.37541954,135.14,135.13,7.4302]
[1742061482991,14.37541954,135.15,135.13,0.03]
[1742061483549,14.37541954,135.14,135.13,0.03]
[1742061489278,14.37541954,135.15,135.13,0.03]
[1742061489475,14.43841954,135.16,135.13,0.03]
[1742061489670,0.063,135.16,135.13,0.03]
[1742061489863,0.063,135.16,135.13,14.40541954]
[1742061490258,0.063,135.16,135.14,14.37541954]
[1742061490776,0.063,135.16,135.13,20.98541954]
[1742061491179,0.063,135.16,135.14,21.77511954]
[1742061491373,0.063,135.16,135.15,15.88731954]
[1742061491676,0.063,135.17,135.15,86.06111954]
[1742061491876,0.063,135.17,135.16,14.37541954]
[1742061492779,0.063,135.17,135.16,84.54921954]
[1742061493180,0.063,135.17,135.16,91.94781954]
[1742061495182,0.063,135.2,135.16,129.0939684]
[1742061495489,0.063,135.2,135.18,14.37541954]
[1742061495690,0.063,135.2,135.18,20.95541954]
[1742061496287,0.063,135.2,135.19,14.37541954]
[1742061497378,0.063,135.2,135.19,29.79361954]
[1742061497768,0.063,135.2,135.19,99.96741954]
[1742061498675,0.063,135.2,135.19,79.0826]
[1742061498882,0.063,135.2,135.19,85.6626]
[1742061499979,0.063,135.2,135.19,100.03801954]
[1742061501481,0.063,135.2,135.19,85.6626]
[1742061502490,0.063,135.2,135.19,79.0826]
[1742061503790,0.063,135.2,135.19,71.6857]
[1742061504190,0.063,135.2,135.19,70.1738]
[1742061506895,0.063,135.2,135.18,13.9774]
[1742061507092,14.37541954,135.19,135.17,7.398]
[1742061508182,14.37541954,135.18,135.16,0.03]
[1742061508382,14.37541954,135.17,135.16,0.03]
[1742061510089,71.8770977,135.17,135.16,0.03]
[1742061511081,14.37541954,135.17,135.16,0.03]
[1742061512795,71.8770977,135.17,135.16,0.03]
[1742061514798,79.55942084,135.17,135.16,0.03]
[1742061515184,72.16142084,135.17,135.16,0.03]
[1742061516103,14.37541954,135.14,135.13,0.03]
[1742061518104,14.37541954,135.16,135.13,0.03]
[1742061518288,20.0,135.17,135.13,1.6045]
[1742061518489,14.37541954,135.16,135.13,1.6045]
[1742061519792,14.37541954,135.14,135.13,0.03]
[1742061523014,21.77511954,135.14,135.13,0.03]
[1742061523208,14.37541954,135.14,135.13,0.03]
[1742061523713,21.77511954,135.14,135.13,0.03]
[1742061523915,14.37541954,135.14,135.13,0.03]
[1742061524116,21.77511954,135.14,135.13,0.03]
[1742061529312,63.57107816,135.17,135.13,0.03]
[1742061529494,14.37541954,135.15,135.13,0.03]
[1742061529695,14.43841954,135.17,135.13,0.03]
[1742061530204,14.43841954,135.17,135.13,7.4302]
[1742061530619,14.37541954,135.16,135.13,7.4302]
[1742061534514,14.37541954,135.15,135.13,7.4302]
[1742061534708,14.37541954,135.14,135.13,0.03]
[1742061535012,14.37541954,135.15,135.13,0.03]
[1742061535715,14.37541954,135.14,135.13,0.03]
[1742061545729,18.72444626,135.14,135.13,0.03]
[1742061548518,26.12414626,135.14,135.13,0.03]
[1742061555536,18.72444626,135.14,135.13,0.03]
[1742061563720,4.34902672,135.14,135.13,0.03]
[1742061564038,18.72444626,135.14,135.13,0.03]
[1742061568265,4.34902672,135.14,135.13,0.03]
[1742061569725,18.72444626,135.14,135.13,0.03]
[1742061573527,4.34902672,135.14,135.13,0.03]
[1742061573729,4.34902672,135.14,135.13,7.8314]
[1742061573941,4.34902672,135.14,135.13,22.20681954]
[1742061575048,4.34902672,135.14,135.13,29.60701954]
[1742061578945,4.36224,135.15,135.13,85.4054]
[1742061579559,4.36224,135.15,135.13,71.8169]
[1742061579936,14.43841954,135.16,135.13,71.8169]
[1742061580445,14.37541954,135.15,135.13,71.8169]
[1742061580754,14.37541954,135.14,135.13,0.03]
[1742061581330,13.87541954,135.14,135.13,0.03]
[1742061582056,18.2357567,135.14,135.13,0.03]
[1742061585246,4.36033716,135.14,135.13,0.03]
[1742061593646,18.7357567,135.14,135.13,0.03]
[1742061597573,18.7987567,135.14,135.13,0.03]
[1742061602573,19.08307984,135.14,135.13,0.03]
[1742061602759,26.1984567,135.14,135.13,0.03]
[1742061603158,18.7987567,135.14,135.13,0.03]
[1742061605068,26.1984567,135.14,135.13,0.03]
[1742061605262,27.87054588,135.14,135.13,0.03]
[1742061609471,18.7987567,135.14,135.13,0.03]
[1742061612790,26.1984567,135.14,135.13,0.03]
[1742061614489,18.7987567,135.14,135.13,0.03]
[1742061615791,26.1984567,135.14,135.13,0.03]
[1742061617181,18.7987567,135.14,135.13,0.03]
[1742061618896,26.1984567,135.14,135.13,0.03]
[1742061620402,18.7987567,135.14,135.13,0.03]
[1742061625697,18.7987567,135.14,135.13,92.60981954]
[1742061625698,4.42333716,135.14,135.13,92.60981954]
[1742061625996,2.75673716,135.14,135.13,92.60981954]
[1742061626702,2.75673716,135.14,135.13,100.01001954]
[1742061626899,2.75673716,135.14,135.13,106.57001954]
[1742061627284,0.063,135.14,135.13,106.57001954]
[1742061628799,0.063,135.14,135.13,92.1946]
[1742061634793,0.063,135.14,135.13,85.7338]
[1742061635698,0.063,135.14,135.13,15.56]
[1742061636195,0.063,135.14,135.13,29.93541954]
[1742061638806,0.063,135.14,135.13,15.56]
[1742061638998,0.063,135.14,135.13,9.0]
[1742061649411,0.063,135.14,135.13,7.4302]
[1742061650018,0.063,135.14,135.13,0.03]